bitfinex/quotes_BTCUSD_20251231
["timestamp","ask_amount","ask_price","bid_price","bid_amount"]
[1767213375159,0.20759193,87487.0,87477.0,0.0002163]
[1767213376285,0.21902219,87487.0,87477.0,0.0002163]
[1767213376833,0.20759193,87487.0,87477.0,0.0002163]
[1767213376989,0.0685824,87486.0,87477.0,0.0002163]
[1767213377197,0.0114304,87486.0,87477.0,0.0002163]
[1767213377399,0.21902219,87487.0,87477.0,0.0002163]
[1767213377625,0.0114304,87486.0,87477.0,0.0002163]
[1767213377934,0.06858249,87486.0,87477.0,0.0002163]
[1767213378146,0.27617357,87487.0,87477.0,0.0002163]
[1767213378390,0.0114304,87486.0,87477.0,0.0002163]
[1767213378583,0.01143066,87484.0,87477.0,0.0002163]
[1767213378784,0.0114304,87486.0,87477.0,0.0002163]
[1767213379064,0.01143079,87483.0,87477.0,0.0002163]
[1767213379949,0.06858421,87484.0,87477.0,0.0002163]
[1767213380334,0.01143092,87482.0,87477.0,0.0002163]
[1767213380631,0.22025784,87482.0,87477.0,0.0002163]
[1767213380872,0.01143092,87482.0,87477.0,0.0002163]
[1767213381391,0.01143079,87483.0,87477.0,0.0002163]
[1767213381553,0.05715269,87485.0,87477.0,0.0002163]
[1767213381732,0.06858408,87484.0,87477.0,0.0002163]
[1767213382069,0.01143053,87485.0,87477.0,0.0002163]
[1767213382419,0.01143079,87483.0,87477.0,0.0002163]
[1767213382622,0.01143079,87483.0,87469.0,0.0052432]
[1767213382623,0.20882692,87474.0,87469.0,0.0052432]
[1767213382829,0.20882692,87474.0,87460.0,0.05711949]
[1767213382830,0.01143301,87466.0,87460.0,0.05711949]
[1767213383079,0.56200668,87470.0,87460.0,0.05711949]
[1767213383302,0.20882692,87469.0,87460.0,0.05711949]
[1767213383709,0.20887553,87469.0,87460.0,0.05711949]
[1767213383915,0.20887553,87469.0,87449.0,0.2061123]
[1767213383916,0.20882692,87466.0,87449.0,0.2061123]
[1767213384204,4.861e-05,87469.0,87443.0,0.0002]
[1767213384205,0.01143353,87462.0,87443.0,0.0002]
[1767213384408,0.01148,87465.0,87424.0,0.0433814]
[1767213384409,0.20882692,87437.0,87424.0,0.01945182]
[1767213384610,0.20882692,87433.0,87410.0,0.000211]
[1767213384811,0.02213224,87432.0,87410.0,0.000211]
[1767213385012,0.20882692,87429.0,87410.0,0.000211]
[1767213385251,0.20882692,87421.0,87410.0,0.000211]
[1767213385392,0.20882692,87419.0,87397.0,0.2061123]
[1767213385596,0.20893313,87419.0,87400.0,0.56859304]
[1767213385833,0.20893313,87419.0,87400.0,0.00658636]
[1767213386036,0.20893313,87419.0,87400.0,0.56859304]
[1767213386241,0.56200668,87416.0,87400.0,0.00658636]
[1767213386472,0.00010621,87419.0,87400.0,0.00658636]
[1767213386473,0.20882692,87413.0,87400.0,0.00658636]
[1767213386599,0.010931,87412.0,87400.0,0.00658636]
[1767213386795,0.21975792,87412.0,87400.0,0.00658636]
[1767213387256,0.21920792,87412.0,87400.0,0.00658636]
[1767213387487,0.00010621,87419.0,87400.0,0.00658636]
[1767213387488,0.01148,87413.0,87400.0,0.77470534]
[1767213388309,0.01148,87413.0,87400.0,0.21294215]
[1767213389165,0.01148,87413.0,87401.0,0.2061123]
[1767213389523,0.22676743,87417.0,87400.0,0.56883653]
[1767213389708,0.22030692,87416.0,87400.0,0.56883653]
[1767213389909,0.22030692,87416.0,87400.0,0.00682985]
[1767213390145,0.20882692,87415.0,87400.0,0.00682985]
[1767213391698,0.20882692,87415.0,87400.0,0.21294215]
[1767213392983,0.20882692,87415.0,87400.0,0.00682985]
[1767213393120,0.20882692,87409.0,87400.0,0.00682985]
[1767213393495,0.22026778,87406.0,87393.0,0.0002]
[1767213393698,0.7708336,87403.0,87393.0,0.0002]
[1767213393847,0.20882692,87402.0,87393.0,0.0002]
[1767213394839,0.56200668,87403.0,87393.0,0.2063123]
[1767213395081,0.01794254,87415.0,87403.0,0.000549]
[1767213395419,0.01148,87414.0,87403.0,0.000549]
[1767213395619,0.09151212,87414.0,87400.0,0.2061123]
[1767213395752,0.20882692,87409.0,87393.0,0.0002]
[1767213395958,0.20882692,87409.0,87393.0,0.2063123]
[1767213396168,0.56200668,87410.0,87393.0,0.2063123]
[1767213396366,0.01148,87414.0,87393.0,0.2063123]
[1767213396570,0.01794254,87415.0,87414.0,0.000549]
[1767213396769,0.01794254,87415.0,87405.0,0.2061123]
[1767213396770,0.01152,87415.0,87405.0,0.2011123]
[1767213396974,0.00010621,87419.0,87405.0,0.2011123]
[1767213396975,0.01152,87417.0,87405.0,0.2011123]
[1767213397388,0.01794117,87428.0,87417.0,0.000549]
[1767213397586,4.054e-05,87428.0,87419.0,0.2061123]
[1767213397790,0.56200668,87440.0,87421.0,0.2061123]
[1767213398065,0.01152,87439.0,87421.0,0.2061123]
[1767213398207,0.22034692,87439.0,87421.0,0.2061123]
[1767213398840,0.22030414,87439.0,87421.0,0.2061123]
[1767213399039,0.20882692,87438.0,87421.0,0.2061123]
[1767213400667,0.20882692,87438.0,87420.0,0.56200668]
[1767213400668,0.01147722,87439.0,87438.0,0.000549]
[1767213401090,4.054e-05,87440.0,87430.0,0.2061123]
[1767213401324,0.0115169,87445.0,87430.0,0.2061123]
[1767213401526,0.0115169,87445.0,87431.0,0.2061123]
[1767213402201,0.56200668,87441.0,87430.0,0.00035476]
[1767213402416,0.57344296,87441.0,87430.0,0.00035476]
[1767213402647,0.56200668,87441.0,87430.0,0.00035476]
[1767213402852,0.01143602,87443.0,87430.0,0.00035476]
[1767213403159,0.56200668,87440.0,87430.0,0.00035476]
[1767213405388,0.06862192,87436.0,87430.0,7.6e-07]
[1767213405694,0.22034692,87436.0,87430.0,7.6e-07]
[1767213405882,0.20882692,87435.0,87430.0,7.6e-07]
[1767213406050,0.20882692,87433.0,87430.0,7.6e-07]
[1767213406656,0.20882692,87431.0,87430.0,7.6e-07]
[1767213407614,0.01152,87436.0,87430.0,7.6e-07]
[1767213407814,0.01152,87436.0,87422.0,0.20071163]
[1767213407947,0.01187468,87436.0,87422.0,0.20071163]
[1767213408932,0.00035468,87436.0,87422.0,0.20071163]
[1767213409145,0.01152,87435.0,87422.0,0.20071163]
[1767213409794,0.01097,87435.0,87424.0,0.1792042]
[1767213412112,0.01187468,87436.0,87424.0,0.1792042]
[1767213413626,0.00035468,87436.0,87426.0,0.08358187]
[1767213414418,0.01062685,87435.0,87426.0,0.08358187]
[1767213414630,0.00035468,87436.0,87426.0,0.08358187]
[1767213414777,0.01062685,87435.0,87426.0,0.08358187]
[1767213414977,0.00035468,87436.0,87426.0,0.08358187]
[1767213415222,0.01062685,87435.0,87426.0,0.08358187]
[1767213415426,0.00035468,87436.0,87426.0,0.08358187]
[1767213415726,0.01062642,87435.0,87426.0,0.08358187]
[1767213415878,0.00035468,87436.0,87426.0,0.08358187]
[1767213416076,0.01062643,87435.0,87426.0,0.08358187]
[1767213416406,0.00035468,87436.0,87426.0,0.08358187]
[1767213418307,0.01062721,87435.0,87426.0,0.08358187]
[1767213418502,0.000549,87426.0,87419.0,0.00102919]
[1767213418726,0.000549,87426.0,87419.0,0.01254919]
[1767213418928,0.000549,87426.0,87419.0,0.00102919]
[1767213419108,0.08278747,87430.0,87419.0,0.00102919]
[1767213419442,0.09224538,87430.0,87419.0,0.00102919]
[1767213420522,0.01152,87429.0,87419.0,0.00102919]
[1767213420789,0.01152,87429.0,87419.0,0.00048019]
[1767213421409,0.08278747,87428.0,87419.0,0.00048019]
[1767213421731,0.08278747,87426.0,87403.0,0.09510187]
[1767213422458,0.08278747,87424.0,87403.0,0.09510187]
[1767213422853,0.01152,87429.0,87403.0,0.09510187]
[1767213423153,0.02215109,87428.0,87403.0,0.09510187]
[1767213423507,0.01063109,87427.0,87404.0,0.08358187]
[1767213423707,0.01063109,87427.0,87406.0,0.08358187]
[1767213423869,0.02215109,87426.0,87406.0,0.08358187]
[1767213424072,0.01063109,87425.0,87406.0,0.08358187]
[1767213424831,0.06862319,87434.0,87406.0,0.08358187]
[1767213424832,0.08278747,87435.0,87406.0,0.08358187]
[1767213425010,0.08278747,87433.0,87406.0,0.08358187]
[1767213425192,0.01063815,87432.0,87407.0,0.08358187]
[1767213425355,0.01063815,87431.0,87407.0,0.08358187]
[1767213425554,0.01063815,87430.0,87407.0,0.08358187]
[1767213425792,0.01063815,87429.0,87407.0,0.08358187]
[1767213426007,0.01063815,87428.0,87407.0,0.08358187]
[1767213426155,0.01063815,87427.0,87407.0,0.08358187]
[1767213426371,0.01063815,87426.0,87409.0,0.08358187]
[1767213426607,0.01063815,87425.0,87409.0,0.08358187]
[1767213428469,0.01008915,87425.0,87410.0,0.01152]
[1767213428582,0.01148,87433.0,87411.0,0.08358187]
[1767213428789,0.01148,87433.0,87420.0,0.56260626]
[1767213428996,0.01148,87433.0,87421.0,0.08358187]
[1767213430572,0.00035468,87436.0,87421.0,0.08358187]
[1767213432493,0.56260626,87440.0,87427.0,0.08358187]
[1767213432679,0.56260626,87440.0,87427.0,0.08393655]
[1767213432845,0.08278747,87445.0,87427.0,0.09545655]
[1767213433047,0.00020267,87435.0,87427.0,0.09545655]
[1767213433479,0.00020267,87435.0,87427.0,0.16126283]
[1767213433791,0.00020267,87435.0,87428.0,0.08358187]
[1767213438574,0.00020267,87435.0,87428.0,0.08303287]
[1767213444188,0.00020267,87435.0,87428.0,0.09451287]
[1767213445855,6.7e-07,87435.0,87428.0,0.09451287]
[1767213446103,6.7e-07,87435.0,87430.0,0.04632596]
[1767213448175,0.04673548,87456.0,87440.0,0.56260626]
[1767213448346,0.04673548,87456.0,87440.0,0.57408626]
[1767213448540,0.000208,87456.0,87446.0,0.60893222]
[1767213448705,0.000208,87456.0,87446.0,0.04632596]
[1767213450225,0.000208,87456.0,87448.0,0.04632596]
[1767213451071,0.000202,87448.0,87442.0,0.04632596]
[1767213451268,0.000202,87448.0,87444.0,0.04632596]
[1767213451495,0.000202,87448.0,87445.0,0.01093]
[1767213451650,0.000208,87456.0,87445.0,0.01093]
[1767213452495,0.000208,87456.0,87445.0,0.010728]
[1767213453823,0.04652748,87451.0,87431.0,0.04119158]
[1767213453963,0.04652748,87449.0,87432.0,0.01148]
[1767213454585,0.04652748,87449.0,87428.0,0.04632596]
[1767213454810,0.04652748,87449.0,87431.0,0.01148]
[1767213455407,0.56260626,87441.0,87431.0,0.01148]
[1767213455605,0.04652748,87440.0,87431.0,0.01148]
[1767213455807,0.04652748,87440.0,87427.0,0.00035468]
[1767213455989,0.56260626,87440.0,87427.0,0.00035468]
[1767213456204,0.04652748,87435.0,87420.0,0.01148]
[1767213456405,0.04652748,87429.0,87420.0,0.01148]
[1767213457028,0.04652748,87429.0,87412.0,0.04139958]
[1767213461905,0.04652748,87429.0,87412.0,0.0620234]
[1767213462658,0.04652748,87429.0,87412.0,0.000208]
[1767213464078,0.04652748,87428.0,87412.0,0.000208]
[1767213464277,0.00061224,87427.0,87412.0,0.000208]
[1767213467030,0.56260626,87422.0,87412.0,0.000208]
[1767213467292,0.04858191,87421.0,87412.0,0.000208]
[1767213480729,0.0600208,87421.0,87412.0,0.000208]
[1767213481065,0.0600208,87421.0,87405.0,0.01148]
[1767213481066,0.04564122,87418.0,87405.0,0.01148]
[1767213481274,0.04564122,87418.0,87399.0,0.000208]
[1767213481275,0.04564122,87414.0,87399.0,0.000208]
[1767213481468,0.56260626,87410.0,87399.0,0.000208]
[1767213484901,0.04564122,87409.0,87399.0,0.000208]
[1767213486574,0.56299639,87410.0,87409.0,0.001099]
[1767213486818,0.56299639,87410.0,87399.0,0.04880681]
[1767213486819,0.01148,87410.0,87399.0,0.04880681]
[1767213487023,0.04564122,87409.0,87399.0,0.000208]
[1767213487385,0.04564122,87407.0,87399.0,0.000208]
[1767213487585,0.04564122,87404.0,87391.0,0.05169517]
[1767213487717,0.56299639,87401.0,87391.0,0.05169517]
[1767213488628,0.06864414,87408.0,87391.0,0.05169517]
[1767213488629,0.04564122,87421.0,87402.0,0.04859881]
[1767213488828,0.2057963,87440.0,87402.0,0.04859881]
[1767213488829,0.60863761,87420.0,87402.0,0.04859881]
[1767213489029,0.01148,87419.0,87402.0,0.04859881]
[1767213489387,0.56299639,87412.0,87402.0,0.04859881]
[1767213489596,0.04564122,87411.0,87394.0,0.04859881]
[1767213489731,0.56299639,87403.0,87391.0,0.05169517]
[1767213489926,0.04564122,87408.0,87391.0,0.10029398]
[1767213489927,0.56299639,87401.0,87391.0,0.10029398]
[1767213490127,0.56299639,87401.0,87392.0,0.04859881]
[1767213490773,0.56299639,87402.0,87392.0,0.04859881]
[1767213491157,0.04564122,87408.0,87392.0,0.04859881]
[1767213491697,0.57447639,87410.0,87394.0,0.04859881]
[1767213491853,0.56299639,87410.0,87394.0,0.04859881]
[1767213493335,0.06358252,87418.0,87395.0,0.01148]
[1767213493511,0.01148,87417.0,87401.0,0.04859881]
[1767213493727,0.56299639,87420.0,87401.0,0.04859881]
[1767213493889,0.01148,87416.0,87402.0,0.04859881]
[1767213494108,0.01148,87417.0,87402.0,0.04859881]
[1767213496430,0.56299639,87412.0,87402.0,0.04804981]
[1767213498542,0.56299639,87412.0,87403.0,0.02294]
[1767213498748,0.56299639,87412.0,87402.0,0.04804981]
[1767213502607,0.07001939,87411.0,87396.0,0.0482218]
[1767213502814,0.56299639,87410.0,87396.0,0.0482218]
[1767213503263,0.56299639,87410.0,87397.0,0.0482218]
[1767213503667,0.56299639,87410.0,87397.0,0.04731594]
[1767213506036,0.55799639,87410.0,87397.0,0.04731594]
[1767213506258,0.55799639,87410.0,87398.0,0.06951334]
[1767213506454,0.04531264,87414.0,87398.0,0.06951334]
[1767213506655,0.05675245,87414.0,87399.0,0.0482218]
[1767213506861,0.56299639,87410.0,87399.0,0.0482218]
[1767213508459,0.56335085,87410.0,87399.0,0.0482218]
[1767213508661,0.56335085,87410.0,87397.0,0.04119158]
[1767213508854,0.04531264,87409.0,87397.0,0.0729057]
[1767213509046,0.56335085,87410.0,87397.0,0.1211275]
[1767213509247,0.56335085,87410.0,87398.0,0.0482218]
[1767213510173,0.56335085,87410.0,87397.0,0.05267158]
[1767213510353,0.56335085,87410.0,87398.0,0.04119158]
[1767213510552,0.01148,87419.0,87410.0,0.000549]
[1767213510755,0.01148,87419.0,87383.0,0.0002722]
[1767213510756,0.01144086,87406.0,87383.0,0.0002722]
[1767213511067,0.56299639,87401.0,87391.0,0.05149963]
[1767213512526,0.65591415,87401.0,87391.0,0.05149963]
[1767213512727,0.56299639,87401.0,87391.0,0.05149963]
[1767213513598,0.01148,87405.0,87391.0,0.05149963]
[1767213513812,0.56299639,87401.0,87391.0,0.05149963]
[1767213514014,0.01148,87400.0,87391.0,0.05149963]
[1767213514397,0.01148,87399.0,87391.0,0.05149963]
[1767213515171,0.01148,87398.0,87391.0,0.09972143]
[1767213515931,0.56299639,87401.0,87391.0,0.09972143]
[1767213516310,0.01794303,87407.0,87392.0,0.05819394]
[1767213516499,0.56299639,87402.0,87392.0,0.0482218]
[1767213517253,0.56299639,87402.0,87391.0,0.05149963]
[1767213517422,0.000549,87392.0,87391.0,0.05149963]
[1767213517791,0.56299639,87402.0,87391.0,0.05149963]
[1767213517994,0.56299639,87410.0,87392.0,0.0482218]
[1767213518193,0.56299639,87402.0,87392.0,0.0482218]
[1767213519794,0.01148,87405.0,87392.0,0.0482218]
[1767213519993,0.06863375,87421.0,87394.0,0.0482218]
[1767213520195,0.01143876,87422.0,87394.0,0.0482218]
[1767213520196,0.56299639,87410.0,87394.0,0.0482218]
[1767213520397,0.56299639,87404.0,87394.0,0.0482218]
[1767213521406,0.01148,87409.0,87394.0,0.0482218]
[1767213523152,0.01148,87409.0,87391.0,0.05149963]
[1767213523153,0.56299639,87404.0,87391.0,0.05149963]
[1767213523360,0.56299639,87401.0,87391.0,0.05149963]
[1767213523562,0.57447639,87401.0,87391.0,0.05149963]
[1767213525300,0.04584,87416.0,87392.0,0.0482218]
[1767213525498,0.04584,87416.0,87391.0,0.05149963]
[1767213525499,0.01065377,87413.0,87394.0,0.0482218]
[1767213525699,0.56299639,87410.0,87394.0,0.0482218]
[1767213525934,0.01148,87409.0,87394.0,0.0482218]
[1767213528246,0.01148,87409.0,87395.0,0.01148]
[1767213528450,0.01148,87409.0,87396.0,0.0482218]
[1767213533834,0.01148,87409.0,87391.0,0.05149963]
[1767213533835,0.001099,87396.0,87391.0,0.05149963]
[1767213534098,0.001099,87396.0,87391.0,0.06297963]
[1767213534292,0.58666553,87401.0,87391.0,0.05149963]
[1767213535039,0.01148,87402.0,87391.0,0.05149963]
[1767213535384,0.01148,87402.0,87392.0,0.04605581]
[1767213536479,0.58666553,87410.0,87392.0,0.04605581]
[1767213536684,0.01148,87408.0,87392.0,0.04605581]
[1767213536883,0.56299639,87402.0,87392.0,0.04605581]
[1767213537089,0.01148,87408.0,87392.0,0.04605581]
[1767213537378,0.07308878,87408.0,87392.0,0.04605581]
[1767213537949,0.03514914,87408.0,87392.0,0.04605581]
[1767213538759,0.03514914,87408.0,87392.0,0.04515004]
[1767213539161,0.01148,87408.0,87392.0,0.04515004]
[1767213540790,0.01148,87408.0,87394.0,0.04605581]
[1767213541677,0.02512391,87407.0,87393.0,0.01148]
[1767213544703,0.02512391,87407.0,87393.0,0.05753581]
[1767213544904,0.01148,87408.0,87393.0,0.05753581]
[1767213546866,0.01148,87414.0,87408.0,0.000549]
[1767213547075,0.01066767,87413.0,87403.0,0.04605581]
[1767213547270,0.01148,87414.0,87403.0,0.04605581]
[1767213547498,0.01066845,87413.0,87403.0,0.04605581]
[1767213547669,0.01794231,87415.0,87403.0,0.04605581]
[1767213547670,0.02942231,87415.0,87403.0,0.04605581]
[1767213547877,0.01066842,87414.0,87403.0,0.04605581]
[1767213548102,0.02942231,87415.0,87403.0,0.04605581]
[1767213548428,0.01066815,87414.0,87403.0,0.04605581]
[1767213548630,0.02942231,87415.0,87403.0,0.04605581]
[1767213548803,0.01066813,87414.0,87403.0,0.04605581]
[1767213549043,0.02942231,87415.0,87403.0,0.04605581]
[1767213549212,0.01066802,87414.0,87403.0,0.04605581]
[1767213549530,0.01794231,87415.0,87403.0,0.04605581]
[1767213552108,0.01794231,87415.0,87403.0,0.04484838]
[1767213552497,0.01148,87417.0,87403.0,0.04484838]
[1767213555189,0.07271633,87416.0,87403.0,0.04484838]
[1767213558857,0.01148,87417.0,87403.0,0.04484838]
[1767213561915,0.02457103,87422.0,87403.0,0.04484838]
[1767213562121,0.02214436,87421.0,87403.0,0.04484838]
[1767213562317,0.01066436,87420.0,87403.0,0.04484838]
[1767213562572,0.00054787,87419.0,87403.0,0.04484838]
[1767213563178,0.00054787,87419.0,87404.0,0.04761076]
[1767213564343,0.01066335,87418.0,87404.0,0.04761076]
[1767213564547,0.00054787,87419.0,87404.0,0.04761076]
[1767213564862,0.01066366,87418.0,87404.0,0.04761076]
[1767213565064,0.00054787,87419.0,87404.0,0.04761076]
[1767213565231,0.01066403,87418.0,87404.0,0.04761076]
[1767213565431,0.00054787,87419.0,87404.0,0.04761076]
[1767213565656,0.01066402,87418.0,87404.0,0.04761076]
[1767213565884,0.00054787,87419.0,87404.0,0.04761076]
[1767213566133,0.01066403,87418.0,87404.0,0.04761076]
[1767213566469,0.00054787,87419.0,87404.0,0.04761076]
[1767213566650,0.01066404,87418.0,87404.0,0.04761076]
[1767213566977,0.00054787,87419.0,87404.0,0.04761076]
[1767213567179,0.01066404,87418.0,87404.0,0.04761076]
[1767213567388,0.00054787,87419.0,87404.0,0.04761076]
[1767213567588,0.01066452,87418.0,87404.0,0.04761076]
[1767213567778,0.00054787,87419.0,87404.0,0.04761076]
[1767213568045,0.01066452,87418.0,87404.0,0.04761076]
[1767213568234,0.00054787,87419.0,87404.0,0.04761076]
[1767213568404,0.01066508,87418.0,87404.0,0.04761076]
[1767213568615,0.00054787,87419.0,87404.0,0.04761076]
[1767213568803,0.01066509,87418.0,87404.0,0.04761076]
[1767213569005,0.00054787,87419.0,87404.0,0.04761076]
[1767213569199,0.01066508,87418.0,87404.0,0.04761076]
[1767213569408,0.00054787,87419.0,87404.0,0.04761076]
[1767213569733,0.01066557,87418.0,87404.0,0.04761076]
[1767213569886,0.00054787,87419.0,87404.0,0.04761076]
[1767213570084,0.01066557,87418.0,87404.0,0.04761076]
[1767213570286,0.00054787,87419.0,87404.0,0.04761076]
[1767213570489,0.0106657,87418.0,87404.0,0.04761076]
[1767213570690,0.00054787,87419.0,87404.0,0.04761076]
[1767213570890,0.01066571,87418.0,87404.0,0.04761076]
[1767213571138,0.00054787,87419.0,87404.0,0.04761076]
[1767213571443,0.01066582,87418.0,87404.0,0.04761076]
[1767213571603,0.00054787,87419.0,87404.0,0.04761076]
[1767213571833,0.01066604,87418.0,87404.0,0.04741076]
[1767213572037,0.00054787,87419.0,87404.0,0.04741076]
[1767213572239,0.01066646,87418.0,87404.0,0.04741076]
[1767213572437,0.02653134,87418.0,87403.0,0.01148]
[1767213572646,0.03797063,87418.0,87403.0,0.01148]
[1767213572841,0.03797063,87418.0,87399.0,0.04761076]
[1767213572842,0.06863759,87416.0,87399.0,0.04761076]
[1767213573055,0.02653134,87418.0,87399.0,0.04761076]
[1767213573254,0.01066636,87417.0,87399.0,0.04761076]
[1767213573502,0.01066636,87417.0,87399.0,0.04655478]
[1767213573683,0.01066636,87417.0,87401.0,0.04761076]
[1767213574482,0.05335204,87417.0,87401.0,0.04761076]
[1767213574683,0.01066636,87416.0,87401.0,0.04761076]
[1767213575040,0.07930377,87416.0,87401.0,0.04761076]
[1767213575246,0.01066636,87415.0,87401.0,0.04761076]
[1767213575621,0.04268568,87417.0,87401.0,0.04761076]
[1767213575822,0.01066904,87416.0,87401.0,0.04761076]
[1767213576043,0.01066904,87415.0,87401.0,0.04761076]
[1767213576262,0.01066904,87414.0,87401.0,0.04761076]
[1767213576434,0.04268568,87417.0,87401.0,0.04761076]
[1767213576575,0.01067092,87416.0,87401.0,0.04761076]
[1767213576776,0.01067092,87415.0,87401.0,0.04761076]
[1767213577493,0.02653134,87418.0,87401.0,0.04761076]
[1767213577696,0.01067154,87417.0,87401.0,0.04761076]
[1767213577898,0.01067154,87416.0,87401.0,0.04761076]
[1767213578101,0.01067154,87415.0,87401.0,0.04761076]
[1767213578310,0.01980789,87417.0,87401.0,0.04761076]
[1767213578513,0.01067187,87416.0,87401.0,0.04761076]
[1767213578736,0.01067187,87415.0,87401.0,0.04761076]
[1767213578939,0.01980789,87417.0,87401.0,0.04761076]
[1767213579137,0.05083943,87416.0,87401.0,0.04761076]
[1767213579354,0.01067186,87415.0,87401.0,0.04761076]
[1767213585423,0.01067186,87414.0,87401.0,0.04761076]
[1767213585600,0.01980789,87417.0,87401.0,0.04761076]
[1767213585802,0.02758732,87415.0,87401.0,0.04706076]
[1767213585975,0.02211254,87414.0,87401.0,0.04706076]
[1767213586176,0.06863967,87413.0,87401.0,0.04706076]
[1767213587057,0.01143994,87413.0,87401.0,0.04706076]
[1767213587383,0.08012015,87414.0,87401.0,0.04706076]
[1767213587735,0.0114402,87411.0,87401.0,0.04706076]
[1767213588135,0.06864099,87412.0,87401.0,0.04706076]
[1767213588538,0.05720428,87407.0,87398.0,0.01148]
[1767213588739,0.06864501,87407.0,87398.0,0.01148]
[1767213589256,0.0686437,87408.0,87398.0,0.01148]
[1767213589444,0.0572044,87406.0,87398.0,0.01148]
[1767213589621,0.06864526,87406.0,87398.0,0.01148]
[1767213589826,0.01144099,87405.0,87398.0,0.01148]
[1767213590076,0.06864526,87406.0,87398.0,0.01148]
[1767213590676,0.01144086,87406.0,87398.0,0.01148]
[1767213591107,0.01144046,87409.0,87399.0,0.04534216]
[1767213591308,0.06864336,87409.0,87399.0,0.04534216]
[1767213591819,0.06864204,87410.0,87399.0,0.04534216]
[1767213592109,0.01144007,87412.0,87399.0,0.04534216]
[1767213592316,0.06864106,87412.0,87399.0,0.04534216]
[1767213592614,0.01144033,87410.0,87399.0,0.04534216]
[1767213592847,0.05720308,87408.0,87399.0,0.04534216]
[1767213593055,0.01144086,87406.0,87399.0,0.04534216]
[1767213593460,0.06864536,87406.0,87399.0,0.04534216]
[1767213593592,0.01144073,87407.0,87399.0,0.04534216]
[1767213593795,0.01144086,87406.0,87399.0,0.04534216]
[1767213594018,0.06864489,87407.0,87399.0,0.04534216]
[1767213594405,0.01144073,87407.0,87399.0,0.04534216]
[1767213595233,0.06864517,87406.0,87399.0,0.04534216]
[1767213595619,0.06864445,87407.0,87399.0,0.04534216]
[1767213595823,0.01144073,87407.0,87399.0,0.04534216]
[1767213596630,0.01144112,87404.0,87399.0,0.04534216]
[1767213597068,0.01144086,87406.0,87404.0,0.000549]
[1767213597270,0.057205,87405.0,87399.0,0.04534216]
[1767213597631,0.01144086,87406.0,87399.0,0.04534216]
[1767213598034,0.06864446,87407.0,87399.0,0.04534216]
[1767213598859,0.01144086,87406.0,87399.0,0.04534216]
[1767213599065,0.06864446,87407.0,87399.0,0.04534216]
[1767213599285,0.05720416,87408.0,87399.0,0.04534216]
[1767213599459,0.01144073,87407.0,87399.0,0.04534216]
[1767213599862,0.06864476,87408.0,87399.0,0.04534216]
[1767213600106,0.01144073,87407.0,87399.0,0.04534216]
[1767213600420,0.06864204,87410.0,87399.0,0.04534216]
[1767213600568,0.05720177,87410.0,87407.0,0.000549]
[1767213600762,0.05720177,87410.0,87399.0,0.04534216]
[1767213600763,0.0686445,87407.0,87399.0,0.04534216]
[1767213600968,0.01144073,87407.0,87399.0,0.04534216]
[1767213601317,0.06864446,87407.0,87399.0,0.04534216]
[1767213601680,0.06864519,87406.0,87399.0,0.04534216]
[1767213601885,0.06864446,87407.0,87399.0,0.04534216]
[1767213602444,0.01144086,87406.0,87399.0,0.04534216]
[1767213602646,0.01144125,87403.0,87392.0,0.0001502]
[1767213602802,0.000549,87399.0,87393.0,0.01148]
[1767213603002,0.000549,87399.0,87392.0,0.0001502]
[1767213603208,0.06864862,87402.0,87392.0,0.0001502]
[1767213603409,0.01144138,87402.0,87392.0,0.0001502]
[1767213603608,0.02455622,87402.0,87392.0,0.0001502]
[1767213603846,0.06864107,87412.0,87403.0,0.04534216]
[1767213604198,0.01148,87411.0,87403.0,0.04534216]
[1767213604733,0.0229202,87411.0,87403.0,0.04534216]
[1767213604935,0.01148,87411.0,87403.0,0.04534216]
[1767213606159,0.000549,87403.0,87397.0,0.04534216]
[1767213606324,0.000549,87403.0,87392.0,0.0001502]
[1767213606325,0.0114419,87398.0,87392.0,0.0001502]
[1767213606524,0.03942942,87395.0,87391.0,0.05149963]
[1767213606771,0.01144243,87394.0,87391.0,0.05149963]
[1767213606990,0.02798712,87395.0,87391.0,0.05149963]
[1767213607121,0.02798712,87395.0,87391.0,0.05095063]
[1767213607122,0.03942942,87395.0,87391.0,0.05095063]
[1767213607326,0.02798712,87393.0,87391.0,0.05095063]
[1767213607527,0.02798712,87395.0,87391.0,0.05095063]
[1767213607735,0.03942942,87395.0,87391.0,0.05095063]
[1767213607934,0.09664102,87395.0,87391.0,0.05095063]
[1767213608404,0.09914569,87394.0,87391.0,0.05095063]
[1767213608600,0.09664102,87395.0,87391.0,0.05095063]
[1767213608746,0.02798712,87393.0,87391.0,1e-08]
[1767213608960,0.06866304,87384.0,87374.0,0.0001466]
[1767213609211,0.56350246,87384.0,87374.0,0.0001466]
[1767213609565,0.00035448,87384.0,87374.0,0.0001466]
[1767213609766,0.56350246,87384.0,87374.0,0.0001466]
[1767213610622,0.03928439,87383.0,87374.0,0.0001466]
[1767213610828,0.09650377,87383.0,87374.0,0.0001466]
[1767213611223,0.02784052,87383.0,87374.0,0.0001466]
[1767213612000,0.03928439,87383.0,87374.0,0.0001466]
[1767213612132,0.01144439,87379.0,87374.0,0.0001466]
[1767213612337,0.01144439,87379.0,87356.0,0.0001466]
[1767213612338,0.02754732,87368.0,87350.0,0.06818983]
[1767213612537,0.01148,87379.0,87359.0,0.04534216]
[1767213612765,0.56314798,87380.0,87361.0,0.04534216]
[1767213612974,0.0686648,87381.0,87363.0,0.04534216]
[1767213612975,0.01144452,87378.0,87363.0,0.04534216]
[1767213613130,0.57459224,87380.0,87363.0,0.04534216]
[1767213613347,0.01144439,87379.0,87363.0,0.04534216]
[1767213613588,0.06866641,87379.0,87363.0,0.04534216]
[1767213613798,0.0001548,87379.0,87363.0,0.04534216]
[1767213614238,0.0001548,87379.0,87369.0,0.56314798]
[1767213614389,8e-07,87379.0,87371.0,0.04534216]
[1767213616274,8e-07,87379.0,87372.0,0.01148]
[1767213616921,8e-07,87379.0,87371.0,0.04534216]
[1767213617075,8e-07,87379.0,87373.0,0.01148]
[1767213618842,0.01144519,87379.0,87373.0,0.01148]
[1767213618979,8e-07,87379.0,87373.0,0.01148]
[1767213619375,8e-07,87379.0,87374.0,0.04534216]
[1767213619727,0.01144519,87379.0,87373.0,0.01148]
[1767213619888,0.01144479,87376.0,87373.0,0.011327]
[1767213620088,0.01144479,87376.0,87348.0,0.06123268]
[1767213620089,0.01144557,87370.0,87354.0,0.0493641]
[1767213620293,0.56314798,87370.0,87356.0,0.0493641]
[1767213620494,0.56314798,87370.0,87358.0,0.0493641]
[1767213620909,0.01144531,87372.0,87358.0,0.0493641]
[1767213621325,0.01144544,87371.0,87358.0,0.0493641]
[1767213621529,0.01144544,87371.0,87360.0,0.0493641]
[1767213622322,0.01144531,87372.0,87361.0,0.01148]
[1767213622719,0.05722467,87375.0,87361.0,0.0608441]
[1767213622924,0.01144531,87372.0,87361.0,0.0608441]
[1767213623119,0.06867148,87373.0,87361.0,0.0608441]